[Event "EYCC Open-U18 2019"]
[Site "Bratislava"]
[Date "2019.08.08"]
[Round "7.25"]
[White "Mladek, Richard"]
[Black "Schoppen, Casper"]
[Result "0-1"]
[ECO "C92"]
[WhiteElo "2253"]
[BlackElo "2493"]
[Annotator "ChessBase"]
[PlyCount "110"]
[EventDate "2019.08.02"]
[EventType "swiss"]
[EventCountry "SVK"]
[SourceTitle "playchess.com"]
[Source "ChessBase"]
[SourceQuality "1"]
[TimeControl "40/5400+30:1800+30"]

1. e4 {[%emt 0:00:00]} e5 {[%emt 0:00:00]} 2. Nf3 {[%emt 0:00:00]} Nc6 {[%emt 0:00:00]} 3. Bb5 {[%emt 0:00:02]} a6 {[%emt 0:00:20]} 4. Ba4 {[%emt 0:00:20]} Nf6 {[%emt 0:00:11]} 5. O-O {[%emt 0:00:17]} Be7 {[%emt 0:00:05]} 6. Re1 {[%emt 0:02:03]} b5 {[%emt 0:00:07]} 7. Bb3 {[%emt 0:00:05]} d6 {[%emt 0:00:05]} 8. c3 {[%emt 0:00:08]} O-O {[%emt 0:00:06]} 9. h3 {[%emt 0:00:02]} Bb7 {[%emt 0:00:10]} 10. d4 {[%emt 0:01:21]} Re8 {[%emt 0:00:06]} 11. Ng5 {[%emt 0:01:48]} Rf8 {[%emt 0:00:07]} 12. Nf3 h6 {[%emt 0:01:12]} 13. Nbd2 {[%emt 0:02:15]} Re8 {[%emt 0:00:54]} 14. Nf1 {[%emt 0:01:07]} Bf8 {[%emt 0:00:41]} 15. Ng3 {[%emt 0:00:25]} Na5 {[%emt 0:01:01]} 16. Bc2 {[%emt 0:02:25]} Nc4 {[%emt 0:00:20]} 17. b3 Nb6 18. a4 {[%emt 0:01:55]} bxa4 {[%emt 0:04:39]} 19. bxa4 {[%emt 0:09:23]} a5 {[%emt 0:08:20]} 20. Bd3 {[%emt 0:10:00]} Qd7 21. Rb1 {[%emt 0:00:48]} Bc6 {[%emt 0:04:51]} 22. Bb5 Rab8 23. d5 {[%emt 0:03:52]} Bxb5 {[%emt 0:05:02]} 24. axb5 {[%emt 0:06:09]} a4 25. Rb4 {[%emt 0:00:30]} Ra8 {[%emt 0:05:13]} 26. Ba3 {[%emt 0:02:04]} g6 {[%emt 0:10:43]} 27. Ne2 {[%emt 0:00:30]} Ra5 {[%emt 0:06:09]} 28. Qd3 {[%emt 0:12:03]} Nbxd5 {[%emt 0:02:27]} 29. Rbb1 {[%emt 0:00:30]} Nb6 {[%emt 0:00:30]} 30. c4 {[%emt 0:01:18]} Qe6 {[%emt 0:16:01]} 31. Nd2 {[%emt 0:01:01]} Nh5 32. Nc3 {[%emt 0:00:01]} Nf4 {[%emt 0:04:19]} 33. Qf1 {[%emt 0:02:14]} Qd7 {[%emt 0:03:45]} 34. Nd5 {[%emt 0:01:17]} Nbxd5 {[%emt 0:04:42]} 35. exd5 {[%emt 0:00:52]} Raa8 36. Re3 f5 {[%emt 0:03:46]} 37. g3 {[%emt 0:02:17]} Nh5 {[%emt 0:00:13]} 38. Bb2 {[%emt 0:01:51]} Bg7 {[%emt 0:04:40]} 39. Ra3 {[%emt 0:07:47]} e4 {[%emt 0:01:30]} 40. Qc1 {[%emt 0:00:00]} f4 {[%emt 0:00:00]} 41. g4 {[%emt 0:08:43]} e3 42. Nf3 {[%emt 0:01:22]} exf2+ {[%emt 0:16:13]} 43. Kxf2 {[%emt 0:00:30]} Ng3 44. Bxg7 {[%emt 0:01:19]} Re2+ {[%emt 0:01:55]} 45. Kg1 {[%emt 0:06:44]} Re4 {[%emt 0:04:40]} 46. Qb2 {[%emt 0:01:57]} Qxg7 {[%emt 0:01:37]} 47. Qxg7+ Kxg7 48. Rb4 {[%emt 0:00:48]} Re3 {[%emt 0:04:19]} 49. Raxa4 {[%emt 0:00:12]} Rxa4 {[%emt 0:00:55]} 50. Rxa4 {[%emt 0:00:02]} Rxf3 {[%emt 0:00:09]} 51. Ra7 {[%emt 0:00:00]} Rb3 {[%emt 0:01:19]} 52. Rxc7+ Kf6 53. h4 {[%emt 0:02:05]} Rb2 {[%emt 0:00:36]} 54. b6 {[%emt 0:00:11]} f3 {[%emt 0:00:06]} 55. b7 {[%emt 0:00:03]} Rg2# {[%emt 0:00:04]} 0-1

[Event "EYCC Open-U18 2019"]
[Site "Bratislava"]
[Date "2019.08.08"]
[Round "7.26"]
[White "Chylewski, Patryk"]
[Black "Golikov, Daniil"]
[Result "0-1"]
[ECO "A62"]
[WhiteElo "2376"]
[BlackElo "2257"]
[Annotator "NA"]
[PlyCount "100"]
[EventDate "2019.08.02"]
[EventType "swiss"]
[EventCountry "SVK"]
[SourceTitle "playchess.com"]
[Source "ChessBase"]
[SourceQuality "1"]
[TimeControl "40/5400+30:1800+30"]

1. d4 {[%emt 0:00:00]} Nf6 {[%emt 0:00:00]} 2. c4 {[%emt 0:00:00]} e6 {[%emt 0:00:00]} 3. g3 {[%emt 0:00:14]} c5 {[%emt 0:00:30]} 4. d5 {[%emt 0:00:05]} exd5 {[%emt 0:00:36]} 5. cxd5 {[%emt 0:00:05]} d6 {[%emt 0:00:02]} 6. Nc3 {[%emt 0:00:22]} g6 {[%emt 0:03:38]} 7. Nf3 {[%emt 0:00:08]} Bg7 {[%emt 0:00:07]} 8. Bg2 {[%emt 0:00:04]} O-O {[%emt 0:00:04]} 9. O-O {[%emt 0:00:06]} a6 {[%emt 0:03:42]} 10. a4 {[%emt 0:00:06]} Re8 {[%emt 0:00:05]} 11. Re1 {[%emt 0:00:22]} Ne4 {[%emt 0:04:50]} 12. Nxe4 {[%emt 0:03:33]} Rxe4 {[%emt 0:00:02]} 13. Qc2 {[%emt 0:02:32]} Re8 {[%emt 0:03:22]} 14. e4 {[%emt 0:01:23]} Nd7 {[%emt 0:01:16]} 15. Nd2 {[%emt 0:08:24]} f5 {[%emt 0:06:09]} 16. Nc4 {[%emt 0:09:15]} Ne5 {[%emt 0:00:08]} 17. Nxe5 {[%emt 0:13:10]} Bxe5 {[%emt 0:00:06]} 18. Bd2 {[%emt 0:03:13]} Bd7 {[%emt 0:28:18]} 19. Bc3 {[%emt 0:16:14]} Bxc3 {[%emt 0:12:37]} 20. Qxc3 {[%emt 0:03:57]} fxe4 {[%emt 0:01:15]} 21. Bxe4 {[%emt 0:05:58]} b5 {[%emt 0:03:51]} 22. h4 {[%emt 0:11:02]} b4 {[%emt 0:09:05]} 23. Qc2 {[%emt 0:01:27]} Qf6 {[%emt 0:02:41]} 24. Re3 {[%emt 0:03:22]} Bf5 {[%emt 0:03:50]} 25. Rae1 {[%emt 0:00:41]} Bxe4 {[%emt 0:00:20]} 26. Rxe4 {[%emt 0:00:05]} Rxe4 {[%emt 0:00:03]} 27. Rxe4 {[%emt 0:10:10]} Qf5 {[%emt 0:02:20]} 28. Qc4 {[%emt 0:03:37]} Rf8 {[%emt 0:03:48]} 29. Re2 {[%emt 0:02:03]} a5 {[%emt 0:00:03]} 30. b3 {[%emt 0:00:19]} Qf3 {[%emt 0:00:05]} 31. Kh2 {[%emt 0:01:58]} Rf5 {[%emt 0:00:18]} 32. Qa6 {[%emt 0:00:58]} Qxd5 {[%emt 0:03:57]} 33. Qxa5 {[%emt 0:00:08]} Qd3 {[%emt 0:02:41]} 34. Qd8+ {[%emt 0:00:27]} Kg7 {[%emt 0:00:16]} 35. Qe7+ {[%emt 0:00:50]} Rf7 {[%emt 0:01:53]} 36. Qe6 {[%emt 0:00:07]} Qd4 {[%emt 0:00:34]} 37. Kg2 {[%emt 0:00:44]} Qf6 {[%emt 0:00:46]} 38. Qe3 {[%emt 0:00:27]} d5 {[%emt 0:00:12]} 39. Qe5 {[%emt 0:00:54]} Qxe5 {[%emt 0:00:58]} 40. Rxe5 {[%emt 0:00:00]} Rd7 {[%emt 0:00:00]} 41. Kf1 {[%emt 0:18:26]} c4 {[%emt 0:07:15]} 42. bxc4 {[%emt 0:05:23]} dxc4 {[%emt 0:01:47]} 43. Ke2 {[%emt 0:01:44]} c3 {[%emt 0:01:03]} 44. Rc5 {[%emt 0:00:25]} Rd2+ {[%emt 0:01:01]} 45. Ke3 {[%emt 0:03:08]} Rd1 {[%emt 0:00:20]} 46. Ke2 {[%emt 0:00:32]} Ra1 {[%emt 0:00:07]} 47. Kd3 {[%emt 0:00:29]} b3 {[%emt 0:00:09]} 48. Kxc3 {[%emt 0:01:51]} Rc1+ {[%emt 0:00:05]} 49. Kxb3 {[%emt 0:00:07]} Rxc5 {[%emt 0:00:05]} 50. Kb4 {[%emt 0:00:03]} Rc2 {[%emt 0:00:05]} 0-1

[Event "EYCC Open-U18 2019"]
[Site "Bratislava"]
[Date "2019.08.08"]
[Round "7.27"]
[White "Boev, Viktor"]
[Black "Kozak, Antoni"]
[Result "1-0"]
[ECO "C00"]
[WhiteElo "2246"]
[BlackElo "2365"]
[Annotator "NA"]
[PlyCount "77"]
[EventDate "2019.08.02"]
[EventType "swiss"]
[EventCountry "SVK"]
[SourceTitle "playchess.com"]
[Source "ChessBase"]
[SourceQuality "1"]
[TimeControl "40/5400+30:1800+30"]

1. e4 {[%emt 0:00:00]} a6 {[%emt 0:00:00]} 2. d4 {[%emt 0:00:10]} e6 {[%emt 0:00:04]} 3. Bd3 {[%emt 0:01:13]} c5 {[%emt 0:00:40]} 4. c3 {[%emt 0:00:06]} d5 {[%emt 0:01:08]} 5. e5 {[%emt 0:00:07]} Bd7 {[%emt 0:00:11]} 6. Nf3 {[%emt 0:02:26]} cxd4 {[%emt 0:05:34]} 7. cxd4 {[%emt 0:00:08]} Bb5 {[%emt 0:00:04]} 8. Bc2 {[%emt 0:07:23]} a5 {[%emt 0:03:55]} 9. Nc3 {[%emt 0:05:56]} Bb4 {[%emt 0:09:11]} 10. Nd2 {[%emt 0:01:38]} Ba6 {[%emt 0:01:36]} 11. a3 {[%emt 0:04:48]} Bf8 {[%emt 0:05:44]} 12. Nf3 {[%emt 0:04:14]} Nc6 {[%emt 0:00:55]} 13. Ne2 {[%emt 0:01:25]} Nge7 {[%emt 0:01:19]} 14. O-O {[%emt 0:00:08]} Nc8 {[%emt 0:00:17]} 15. Re1 {[%emt 0:00:13]} Be7 {[%emt 0:00:39]} 16. Qd2 {[%emt 0:04:05]} Nb6 {[%emt 0:04:26]} 17. Qf4 {[%emt 0:01:10]} g5 {[%emt 0:01:54]} 18. Qg3 {[%emt 0:05:02]} h5 {[%emt 0:14:35]} 19. Bxg5 {[%emt 0:03:18]} Bxe2 {[%emt 0:03:40]} 20. Bxe7 {[%emt 0:01:58]} Qxe7 {[%emt 0:00:05]} 21. Rxe2 {[%emt 0:00:05]} O-O-O {[%emt 0:00:09]} 22. Qg5 {[%emt 0:04:27]} Qxg5 {[%emt 0:04:20]} 23. Nxg5 {[%emt 0:00:07]} Nxd4 {[%emt 0:00:32]} 24. Rd2 {[%emt 0:00:05]} Rhg8 {[%emt 0:00:10]} 25. f4 {[%emt 0:00:21]} Nxc2 {[%emt 0:01:30]} 26. Rxc2+ {[%emt 0:01:48]} Kd7 {[%emt 0:00:06]} 27. Nh7 {[%emt 0:02:02]} Rg6 {[%emt 0:04:00]} 28. Nf6+ {[%emt 0:01:44]} Rxf6 {[%emt 0:00:01]} 29. exf6 {[%emt 0:00:11]} a4 {[%emt 0:00:29]} 30. Kf2 {[%emt 0:02:39]} Rg8 {[%emt 0:00:29]} 31. Rd1 {[%emt 0:07:43]} Rg6 {[%emt 0:00:05]} 32. Rd4 {[%emt 0:00:06]} Rxf6 {[%emt 0:00:04]} 33. Kg3 {[%emt 0:00:11]} Kd6 {[%emt 0:01:36]} 34. Rb4 {[%emt 0:02:28]} Nc4 {[%emt 0:00:06]} 35. Rxb7 {[%emt 0:00:43]} Kc5 {[%emt 0:00:09]} 36. Rb4 {[%emt 0:01:49]} Kd4 {[%emt 0:00:29]} 37. Rxa4 {[%emt 0:00:13]} Kd3 {[%emt 0:00:05]} 38. Rc3+ {[%emt 0:00:04]} Ke2 {[%emt 0:00:29]} 39. Raxc4 {[%emt 0:00:26]} 1-0

[Event "EYCC Open-U18 2019"]
[Site "Bratislava"]
[Date "2019.08.08"]
[Round "7.28"]
[White "Akdogan, Alperen"]
[Black "Guerra Rivera, Salvador"]
[Result "0-1"]
[ECO "E15"]
[WhiteElo "2193"]
[BlackElo "2355"]
[Annotator "NA"]
[PlyCount "90"]
[EventDate "2019.08.02"]
[EventType "swiss"]
[EventCountry "SVK"]
[SourceTitle "playchess.com"]
[Source "ChessBase"]
[SourceQuality "1"]
[TimeControl "40/5400+30:1800+30"]

1. d4 {[%emt 0:00:00]} e6 {[%emt 0:00:09]} 2. c4 {[%emt 0:00:02]} Nf6 {[%emt 0:00:05]} 3. Nf3 {[%emt 0:00:11]} b6 {[%emt 0:00:13]} 4. g3 {[%emt 0:00:13]} Ba6 {[%emt 0:00:32]} 5. b3 {[%emt 0:00:35]} Bb4+ {[%emt 0:00:11]} 6. Bd2 {[%emt 0:00:13]} Be7 {[%emt 0:00:16]} 7. Bg2 {[%emt 0:00:06]} d5 {[%emt 0:00:56]} 8. Ne5 {[%emt 0:03:39]} c6 {[%emt 0:00:21]} 9. Bc3 {[%emt 0:00:27]} Nfd7 {[%emt 0:00:28]} 10. Nxd7 {[%emt 0:00:10]} Nxd7 {[%emt 0:00:04]} 11. Nd2 {[%emt 0:00:07]} O-O {[%emt 0:00:10]} 12. O-O {[%emt 0:00:05]} f5 {[%emt 0:00:09]} 13. Rc1 {[%emt 0:04:33]} Rc8 {[%emt 0:01:04]} 14. Bb2 {[%emt 0:01:29]} Bd6 {[%emt 0:05:28]} 15. e3 {[%emt 0:04:46]} Qe7 {[%emt 0:04:36]} 16. Re1 {[%emt 0:09:51]} Rfd8 {[%emt 0:09:09]} 17. Rc2 {[%emt 0:02:56]} Nf6 {[%emt 0:03:31]} 18. Qa1 {[%emt 0:01:27]} Bb7 {[%emt 0:12:53]} 19. Rec1 {[%emt 0:04:29]} a5 {[%emt 0:02:05]} 20. a3 {[%emt 0:16:13]} h5 {[%emt 0:05:41]} 21. h4 {[%emt 0:02:14]} Ne4 {[%emt 0:02:24]} 22. c5 {[%emt 0:02:09]} Bb8 {[%emt 0:09:07]} 23. cxb6 {[%emt 0:04:48]} Nxd2 {[%emt 0:01:32]} 24. Rxd2 {[%emt 0:00:02]} g5 {[%emt 0:00:09]} 25. hxg5 {[%emt 0:02:13]} Qxg5 {[%emt 0:00:40]} 26. Rc5 {[%emt 0:13:45]} h4 {[%emt 0:05:43]} 27. gxh4 {[%emt 0:00:09]} Qxh4 {[%emt 0:00:05]} 28. f4 {[%emt 0:00:11]} Kf7 {[%emt 0:01:31]} 29. Qf1 {[%emt 0:09:29]} Rh8 {[%emt 0:05:28]} 30. Rxa5 {[%emt 0:07:37]} Rcg8 {[%emt 0:00:31]} 31. Bc3 {[%emt 0:00:59]} Qh1+ {[%emt 0:05:38]} 32. Kf2 {[%emt 0:00:04]} Rxg2+ {[%emt 0:00:05]} 33. Qxg2 {[%emt 0:00:03]} Rh2 {[%emt 0:00:04]} 34. Qxh2 {[%emt 0:01:19]} Qxh2+ {[%emt 0:00:02]} 35. Ke1 {[%emt 0:00:06]} Qg1+ {[%emt 0:03:39]} 36. Ke2 {[%emt 0:00:04]} Qg2+ {[%emt 0:00:35]} 37. Ke1 {[%emt 0:02:41]} Qe4 {[%emt 0:01:52]} 38. Kf2 {[%emt 0:02:08]} Qb1 {[%emt 0:00:08]} 39. Bb4 {[%emt 0:01:01]} Qxb3 {[%emt 0:00:32]} 40. Kf3 {[%emt 0:00:00]} Kf6 {[%emt 0:00:00]} 41. Rh2 {[%emt 0:00:58]} Qd1+ {[%emt 0:03:50]} 42. Kf2 {[%emt 0:00:11]} Qc2+ {[%emt 0:00:13]} 43. Kg3 {[%emt 0:00:07]} Qe4 {[%emt 0:02:49]} 44. Bd2 {[%emt 0:07:01]} Bxf4+ {[%emt 0:02:22]} 45. exf4 {[%emt 0:01:36]} Qd3+ {[%emt 0:00:06]} 0-1

[Event "EYCC Open-U18 2019"]
[Site "Bratislava"]
[Date "2019.08.08"]
[Round "7.29"]
[White "Riha, Vojtech"]
[Black "Oboladze, Luka"]
[Result "0-1"]
[ECO "B20"]
[WhiteElo "2197"]
[BlackElo "2323"]
[Annotator "NA"]
[PlyCount "68"]
[EventDate "2019.08.02"]
[EventType "swiss"]
[EventCountry "SVK"]
[SourceTitle "playchess.com"]
[Source "ChessBase"]
[SourceQuality "1"]
[TimeControl "40/5400+30:1800+30"]

1. e4 {[%emt 0:00:00]} c5 {[%emt 0:00:00]} 2. b4 {[%emt 0:00:00]} cxb4 {[%emt 0:00:00]} 3. a3 {[%emt 0:00:00]} e5 {[%emt 0:00:00]} 4. Nf3 {[%emt 0:00:00]} Nc6 {[%emt 0:00:00]} 5. Bb5 {[%emt 0:00:20]} Nf6 {[%emt 0:00:00]} 6. O-O {[%emt 0:00:09]} Be7 {[%emt 0:00:02]} 7. axb4 {[%emt 0:02:23]} Nxe4 {[%emt 0:00:30]} 8. Re1 {[%emt 0:05:00]} Nd6 {[%emt 0:00:15]} 9. Bd3 {[%emt 0:06:01]} Nxb4 {[%emt 0:06:04]} 10. Nxe5 {[%emt 0:00:56]} Nxd3 {[%emt 0:01:03]} 11. Nxd3 {[%emt 0:00:27]} O-O {[%emt 0:05:16]} 12. Nc3 {[%emt 0:00:44]} Nf5 {[%emt 0:09:28]} 13. Nd5 {[%emt 0:03:50]} Bg5 {[%emt 0:02:04]} 14. Bb2 {[%emt 0:09:57]} d6 {[%emt 0:05:17]} 15. Ra4 {[%emt 0:07:49]} Be6 {[%emt 0:10:54]} 16. N3f4 {[%emt 0:03:08]} Qd7 {[%emt 0:05:34]} 17. Qa1 {[%emt 0:12:45]} Qc6 {[%emt 0:14:33]} 18. Ne3 {[%emt 0:09:30]} Bh6 {[%emt 0:11:18]} 19. Nh5 {[%emt 0:09:31]} Nxe3 {[%emt 0:06:33]} 20. dxe3 {[%emt 0:04:26]} f6 {[%emt 0:00:54]} 21. Bd4 {[%emt 0:05:29]} a6 {[%emt 0:01:12]} 22. Rb4 {[%emt 0:04:14]} b5 {[%emt 0:04:29]} 23. Bxf6 {[%emt 0:04:28]} gxf6 {[%emt 0:03:05]} 24. Nxf6+ {[%emt 0:00:06]} Kf7 {[%emt 0:00:11]} 25. Rh4 {[%emt 0:01:26]} Kg6 {[%emt 0:02:13]} 26. Qd4 {[%emt 0:06:52]} Qc4 {[%emt 0:06:21]} 27. Nxh7 {[%emt 0:03:24]} Kxh7 {[%emt 0:02:56]} 28. Re4 {[%emt 0:00:30]} Qxd4 {[%emt 0:00:09]} 29. exd4 {[%emt 0:00:05]} Bf7 {[%emt 0:00:07]} 30. h4 {[%emt 0:00:39]} Rfe8 {[%emt 0:00:26]} 31. g4 {[%emt 0:00:34]} Rxe4 {[%emt 0:00:05]} 32. Rxe4 {[%emt 0:00:04]} Re8 {[%emt 0:00:04]} 33. Rxe8 {[%emt 0:00:44]} Bxe8 {[%emt 0:00:02]} 34. g5 {[%emt 0:00:06]} a5 {[%emt 0:00:09]} 0-1

[Event "EYCC Open-U18 2019"]
[Site "Bratislava"]
[Date "2019.08.08"]
[Round "7.30"]
[White "Galiana Fernandez, Adrian"]
[Black "Garanin, Aleksei"]
[Result "0-1"]
[ECO "D85"]
[WhiteElo "2302"]
[BlackElo "2192"]
[Annotator "NA"]
[PlyCount "77"]
[EventDate "2019.08.02"]
[EventType "swiss"]
[EventCountry "SVK"]
[SourceTitle "playchess.com"]
[Source "ChessBase"]
[SourceQuality "1"]
[TimeControl "40/5400+30:1800+30"]

1. d4 {[%emt 0:00:00]} Nf6 {[%emt 0:00:00]} 2. c4 {[%emt 0:00:00]} g6 {[%emt 0:00:00]} 3. Nc3 {[%emt 0:00:00]} d5 {[%emt 0:00:05]} 4. cxd5 {[%emt 0:00:00]} Nxd5 {[%emt 0:00:07]} 5. e4 {[%emt 0:00:00]} Nxc3 {[%emt 0:00:07]} 6. bxc3 {[%emt 0:00:06]} Bg7 {[%emt 0:00:04]} 7. Nf3 {[%emt 0:00:06]} O-O {[%emt 0:00:08]} 8. Be2 {[%emt 0:00:08]} c5 {[%emt 0:00:08]} 9. O-O {[%emt 0:00:14]} Nc6 {[%emt 0:00:58]} 10. Be3 {[%emt 0:11:16]} Qc7 {[%emt 0:03:52]} 11. Rc1 {[%emt 0:02:46]} Na5 {[%emt 0:07:11]} 12. h3 {[%emt 0:09:46]} Rd8 {[%emt 0:00:49]} 13. Qa4 {[%emt 0:10:08]} Bd7 {[%emt 0:17:17]} 14. Qa3 {[%emt 0:00:35]} Be8 {[%emt 0:00:45]} 15. g3 {[%emt 0:03:29]} Rdc8 {[%emt 0:06:26]} 16. Kg2 {[%emt 0:21:59]} c4 {[%emt 0:01:50]} 17. h4 {[%emt 0:02:28]} b5 {[%emt 0:06:25]} 18. h5 {[%emt 0:00:38]} Nb7 {[%emt 0:02:07]} 19. Rh1 {[%emt 0:03:50]} a5 {[%emt 0:01:36]} 20. Bf4 {[%emt 0:03:40]} Nd6 {[%emt 0:04:41]} 21. e5 {[%emt 0:00:34]} Ne4 {[%emt 0:00:31]} 22. hxg6 {[%emt 0:17:16]} hxg6 {[%emt 0:00:49]} 23. d5 {[%emt 0:00:53]} Qb7 {[%emt 0:06:10]} 24. Rcd1 {[%emt 0:00:07]} b4 {[%emt 0:01:37]} 25. cxb4 {[%emt 0:00:02]} axb4 {[%emt 0:00:07]} 26. Qe3 {[%emt 0:00:07]} f5 {[%emt 0:03:07]} 27. exf6 {[%emt 0:00:46]} Nxf6 {[%emt 0:00:02]} 28. Ng5 {[%emt 0:02:31]} Bd7 {[%emt 0:02:16]} 29. Bf3 {[%emt 0:01:23]} Qa7 {[%emt 0:01:25]} 30. Qe2 {[%emt 0:04:35]} c3 {[%emt 0:02:25]} 31. g4 {[%emt 0:01:59]} c2 {[%emt 0:01:59]} 32. Rc1 {[%emt 0:01:20]} Qc5 {[%emt 0:01:42]} 33. Kg3 {[%emt 0:02:36]} Ra3 {[%emt 0:02:25]} 34. d6 {[%emt 0:00:51]} e5 {[%emt 0:02:16]} 35. Be3 {[%emt 0:00:28]} Qxd6 {[%emt 0:04:55]} 36. Rxc2 {[%emt 0:00:22]} e4+ {[%emt 0:00:07]} 37. Bf4 {[%emt 0:00:05]} Qd3 {[%emt 0:00:28]} 38. Nxe4 {[%emt 0:01:18]} Nxe4+ {[%emt 0:00:28]} 39. Kg2 {[%emt 0:00:18]} 0-1

[Event "EYCC Open-U18 2019"]
[Site "Bratislava"]
[Date "2019.08.08"]
[Round "7.31"]
[White "Kukas, Oliver"]
[Black "Omorjan, Dejan"]
[Result "1-0"]
[ECO "B90"]
[WhiteElo "2082"]
[BlackElo "2317"]
[Annotator "NA"]
[PlyCount "97"]
[EventDate "2019.08.02"]
[EventType "swiss"]
[EventCountry "SVK"]
[SourceTitle "playchess.com"]
[Source "ChessBase"]
[SourceQuality "1"]
[TimeControl "40/5400+30:1800+30"]

1. e4 {[%emt 0:00:00]} c5 {[%emt 0:00:00]} 2. Nf3 {[%emt 0:00:00]} d6 {[%emt 0:00:00]} 3. d4 {[%emt 0:00:00]} cxd4 {[%emt 0:00:00]} 4. Nxd4 {[%emt 0:00:00]} Nf6 {[%emt 0:00:07]} 5. Nc3 {[%emt 0:00:00]} a6 {[%emt 0:00:10]} 6. Be3 {[%emt 0:00:00]} e5 {[%emt 0:00:13]} 7. Nb3 {[%emt 0:00:03]} Be7 {[%emt 0:00:40]} 8. h3 {[%emt 0:00:06]} h5 {[%emt 0:02:01]} 9. Qf3 {[%emt 0:00:50]} Nbd7 {[%emt 0:07:31]} 10. O-O-O {[%emt 0:02:01]} b5 {[%emt 0:03:01]} 11. Rg1 {[%emt 0:03:28]} Bb7 {[%emt 0:02:16]} 12. g4 {[%emt 0:01:47]} hxg4 {[%emt 0:04:18]} 13. hxg4 {[%emt 0:00:30]} b4 {[%emt 0:01:29]} 14. Nd5 {[%emt 0:00:26]} Nxd5 {[%emt 0:00:55]} 15. exd5 {[%emt 0:00:08]} Bg5 {[%emt 0:03:37]} 16. Kb1 {[%emt 0:02:02]} Bxe3 {[%emt 0:12:47]} 17. fxe3 {[%emt 0:05:02]} Qb6 {[%emt 0:02:43]} 18. Bd3 {[%emt 0:04:37]} Rf8 {[%emt 0:05:01]} 19. Rh1 {[%emt 0:01:50]} Nc5 {[%emt 0:09:06]} 20. Nd2 {[%emt 0:07:28]} O-O-O {[%emt 0:08:36]} 21. Rh7 {[%emt 0:01:13]} Kb8 {[%emt 0:05:07]} 22. Rxg7 {[%emt 0:01:20]} Ne6 {[%emt 0:03:43]} 23. Rxf7 {[%emt 0:07:07]} Ng5 {[%emt 0:01:45]} 24. Rxb7+ {[%emt 0:00:19]} Qxb7 {[%emt 0:00:58]} 25. Qg2 {[%emt 0:00:24]} Rde8 {[%emt 0:06:04]} 26. e4 {[%emt 0:03:41]} Rf4 {[%emt 0:02:27]} 27. Nc4 {[%emt 0:07:10]} Qc7 {[%emt 0:01:43]} 28. Ne3 {[%emt 0:00:50]} Qc5 {[%emt 0:00:48]} 29. Nf5 {[%emt 0:01:16]} a5 {[%emt 0:02:29]} 30. Qh1 {[%emt 0:02:15]} Rc8 {[%emt 0:07:31]} 31. Ne7 {[%emt 0:03:00]} Rc7 {[%emt 0:02:37]} 32. Qh8+ {[%emt 0:01:26]} Ka7 {[%emt 0:02:02]} 33. Nc6+ {[%emt 0:01:38]} Rxc6 {[%emt 0:00:01]} 34. dxc6 {[%emt 0:00:05]} Nf7 {[%emt 0:00:43]} 35. Qc8 {[%emt 0:02:42]} Qb6 {[%emt 0:01:26]} 36. Qd7+ {[%emt 0:00:09]} Kb8 {[%emt 0:00:20]} 37. Bc4 {[%emt 0:04:19]} Qc7 {[%emt 0:00:26]} 38. Qe8+ {[%emt 0:13:28]} Ka7 {[%emt 0:00:28]} 39. Rf1 {[%emt 0:08:21]} Nd8 {[%emt 0:03:12]} 40. Rxf4 exf4 {[%emt 0:00:00]} 41. Qd7 {[%emt 0:03:18]} Kb6 {[%emt 0:00:33]} 42. g5 {[%emt 0:00:41]} Nxc6 {[%emt 0:00:43]} 43. Qxc7+ Kxc7 {[%emt 0:00:01]} 44. g6 {[%emt 0:00:20]} Ne7 {[%emt 0:00:27]} 45. g7 {[%emt 0:00:28]} d5 {[%emt 0:00:06]} 46. Bxd5 {[%emt 0:00:24]} f3 {[%emt 0:00:23]} 47. g8=Q {[%emt 0:00:09]} Nxg8 {[%emt 0:00:03]} 48. Bxg8 {[%emt 0:00:06]} f2 {[%emt 0:00:05]} 49. Bc4 {[%emt 0:00:06]} 1-0

[Event "EYCC Open-U18 2019"]
[Site "Bratislava"]
[Date "2019.08.08"]
[Round "7.32"]
[White "Storme, Isak"]
[Black "Pektas, Yigit"]
[Result "1/2-1/2"]
[ECO "B04"]
[WhiteElo "2330"]
[BlackElo "2111"]
[Annotator "NA"]
[PlyCount "81"]
[EventDate "2019.08.02"]
[EventType "swiss"]
[EventCountry "SVK"]
[SourceTitle "playchess.com"]
[Source "ChessBase"]
[SourceQuality "1"]
[TimeControl "40/5400+30:1800+30"]

1. e4 {[%emt 0:00:00]} Nf6 {[%emt 0:00:00]} 2. e5 {[%emt 0:00:00]} Nd5 {[%emt 0:00:00]} 3. d4 {[%emt 0:00:00]} d6 {[%emt 0:00:00]} 4. Nf3 {[%emt 0:00:00]} dxe5 {[%emt 0:00:00]} 5. Nxe5 {[%emt 0:00:00]} c6 {[%emt 0:00:00]} 6. Be2 {[%emt 0:00:00]} Bf5 {[%emt 0:00:00]} 7. O-O {[%emt 0:00:05]} Nd7 {[%emt 0:00:00]} 8. Nd3 {[%emt 0:00:08]} e6 {[%emt 0:00:50]} 9. a3 {[%emt 0:00:03]} Be7 {[%emt 0:00:39]} 10. c4 {[%emt 0:00:05]} N5f6 {[%emt 0:00:17]} 11. b3 {[%emt 0:00:21]} O-O {[%emt 0:00:49]} 12. Bb2 {[%emt 0:00:03]} c5 {[%emt 0:01:10]} 13. dxc5 {[%emt 0:00:04]} Nxc5 {[%emt 0:00:14]} 14. Nxc5 {[%emt 0:00:09]} Bxc5 {[%emt 0:00:11]} 15. b4 {[%emt 0:00:06]} Be7 {[%emt 0:00:42]} 16. Nc3 {[%emt 0:00:12]} a6 {[%emt 0:03:20]} 17. Qb3 {[%emt 0:00:04]} Qc7 {[%emt 0:00:20]} 18. Rac1 {[%emt 0:00:08]} Rfd8 {[%emt 0:00:55]} 19. Rfd1 {[%emt 0:00:12]} Ng4 {[%emt 0:08:34]} 20. g3 {[%emt 0:01:05]} Bf6 {[%emt 0:00:16]} 21. Bf3 {[%emt 0:01:47]} Ne5 {[%emt 0:01:20]} 22. Be2 {[%emt 0:00:12]} Bd3 {[%emt 0:08:22]} 23. Nd5 {[%emt 0:01:56]} exd5 {[%emt 0:08:18]} 24. cxd5 {[%emt 0:00:07]} Qd7 {[%emt 0:01:35]} 25. Bxd3 {[%emt 0:01:04]} Nf3+ {[%emt 0:19:39]} 26. Kg2 {[%emt 0:03:09]} Bxb2 {[%emt 0:10:45]} 27. Qxb2 {[%emt 0:00:21]} Ng5 {[%emt 0:00:08]} 28. Bf1 {[%emt 0:01:47]} Qf5 {[%emt 0:00:41]} 29. Qd4 {[%emt 0:01:05]} Qf3+ {[%emt 0:11:34]} 30. Kg1 {[%emt 0:00:07]} Qxa3 {[%emt 0:00:05]} 31. Bg2 {[%emt 0:00:27]} Nf3+ {[%emt 0:01:08]} 32. Bxf3 {[%emt 0:00:06]} Qxf3 {[%emt 0:00:02]} 33. d6 {[%emt 0:00:44]} Qf6 {[%emt 0:00:04]} 34. Qb6 {[%emt 0:01:32]} Rd7 {[%emt 0:04:34]} 35. Rc7 {[%emt 0:00:10]} Rad8 {[%emt 0:00:54]} 36. Rxb7 {[%emt 0:00:27]} Qf3 {[%emt 0:00:12]} 37. Rxd7 {[%emt 0:01:18]} Qxd1+ {[%emt 0:01:44]} 38. Kg2 {[%emt 0:00:06]} Qd5+ {[%emt 0:00:14]} 39. Kg1 {[%emt 0:00:20]} Qd1+ {[%emt 0:00:39]} 40. Kg2 {[%emt 0:00:00]} Qd5+ {[%emt 0:00:00]} 41. Kg1 {[%emt 0:00:11]} 1/2-1/2